bitfinex-derivatives/quotes_ETHF0:USTF0_20250926
["timestamp","ask_amount","ask_price","bid_price","bid_amount"]
[1758919540543,1.2215,4011.2,4011.1,2.23245676]
[1758919541347,1.2215,4011.2,4011.1,2.48545676]
[1758919541951,1.2215,4011.2,4011.1,2.73315676]
[1758919542458,0.7731,4011.2,4011.1,2.73315676]
[1758919542654,1.2215,4011.2,4011.1,2.73315676]
[1758919544060,1.2215,4011.2,4011.1,2.48545676]
[1758919544658,1.32808,4010.5,4010.4,3.2078]
[1758919544853,1.32808,4010.5,4010.4,3.4608]
[1758919545157,1.32808,4010.5,4010.4,3.2078]
[1758919545355,1.32808,4010.5,4010.4,3.4608]
[1758919549855,0.4523,4010.5,4010.4,3.9028]
[1758919550046,0.4523,4010.5,4010.4,4.1503]
[1758919550252,0.90078,4010.5,4010.4,4.1503]
[1758919550562,1.11078,4010.5,4010.4,4.1503]
[1758919553158,1.32808,4010.5,4010.4,3.9028]
[1758919553460,1.32808,4010.5,4010.1,0.2475]
[1758919553461,1.32813,4010.0,4009.9,0.00289889]
[1758919553857,1.32813,4010.0,4009.9,0.25589889]
[1758919556055,1.32813,4010.0,4009.9,0.47769889]
[1758919557562,1.32813,4010.0,4009.9,0.69789889]
[1758919559258,0.3248,4010.0,4009.9,1.39393889]
[1758919559656,0.3248,4010.0,4009.9,4.60173889]
[1758919561265,0.1275,4010.5,4010.2,0.4677]
[1758919561466,0.1275,4010.5,4010.4,2.93244676]
[1758919561766,0.1275,4010.5,4010.4,2.48395676]
[1758919562064,0.4523,4010.5,4010.4,2.48395676]
[1758919562253,0.3248,4010.5,4010.4,2.93244676]
[1758919562461,0.3248,4010.6,4010.4,2.68494676]
[1758919562765,0.3248,4010.6,4010.5,1.39097]
[1758919563154,0.3248,4010.6,4010.5,0.9425]
[1758919563860,3.2078,4010.7,4010.6,0.44846]
[1758919564165,3.2078,4010.7,4010.6,0.6895]
[1758919564366,3.98105,4010.7,4010.6,0.6895]
[1758919564965,4.19105,4010.7,4010.6,0.6895]
[1758919565765,3.7426,4010.7,4010.6,0.6895]
[1758919566464,3.9599,4010.7,4010.6,0.442]
[1758919566664,4.40835,4010.7,4010.6,0.442]
[1758919567767,3.9599,4010.7,4010.6,0.442]
[1758919567963,4.40835,4010.7,4010.6,0.442]
[1758919568762,0.319,4010.5,4010.1,0.69592]
[1758919568968,0.319,4010.5,4009.9,3.21069889]
[1758919568969,0.8985,4010.0,4009.9,3.87923889]
[1758919569263,0.8985,4010.0,4009.9,5.92669565]
[1758919569565,0.8985,4010.0,4009.9,6.14199565]
[1758919569766,0.8985,4010.0,4009.9,6.38939565]
[1758919571870,0.8985,4010.0,4009.9,6.14199565]
[1758919572871,0.6767,4010.0,4009.9,6.38969565]
[1758919573174,0.319,4010.0,4009.9,6.38969565]
[1758919574373,0.6781,4010.5,4010.4,1.11929]
[1758919574573,0.6781,4010.5,4010.4,3.16674676]
[1758919574767,0.6781,4010.5,4010.4,2.71825676]
[1758919575068,0.6781,4010.5,4010.4,2.47055676]
[1758919575772,0.8881,4010.5,4010.4,2.47055676]
[1758919576775,1.33658,4010.5,4010.4,2.47055676]
[1758919577873,0.4579,4010.5,4010.4,5.92605676]
[1758919578066,0.6781,4010.5,4010.4,5.92605676]
[1758919578267,1.12658,4010.5,4010.4,5.92605676]
[1758919578668,1.12658,4010.5,4010.4,5.57087843]
[1758919579778,0.6781,4010.5,4010.4,5.57087843]
[1758919582266,0.3254,4010.9,4010.4,6.76245686]
[1758919582468,0.3254,4011.0,4010.9,0.6708]
[1758919582774,0.3254,4011.0,4010.9,1.37223]
[1758919583475,0.3254,4011.2,4010.9,0.6761]
[1758919583779,0.3254,4011.2,4011.1,2.55847843]
[1758919584074,0.3254,4011.2,4011.1,2.81147843]
[1758919584275,0.3254,4011.2,4011.1,3.01362231]
[1758919586076,0.3254,4011.2,4011.1,2.36307843]
[1758919586373,0.5456,4011.2,4011.1,2.81148843]
[1758919586773,0.13691967,4011.5,4011.4,0.208]
[1758919586974,0.68251967,4011.5,4011.4,2.81144843]
[1758919589080,0.89251967,4011.5,4011.4,2.11537843]
[1758919589280,1.34087967,4011.5,4011.4,2.11537843]
[1758919590183,0.89251967,4011.5,4011.4,2.11537843]
[1758919591881,1.34087967,4011.5,4011.4,2.11537843]
[1758919593683,1.34087967,4011.5,4010.5,0.4231]
[1758919593684,0.7556,4010.6,4010.5,0.4231]
[1758919593886,0.7556,4010.6,4010.5,2.11537843]
[1758919594183,0.7556,4010.6,4010.5,2.36307843]
[1758919594385,0.7556,4010.6,4010.5,2.81155843]
[1758919594581,0.3254,4010.9,4010.6,0.44846]
[1758919594886,0.3254,4010.9,4010.8,2.11007843]
[1758919595381,0.5456,4010.9,4010.8,2.55851843]
[1758919598196,3.5332,4011.2,4011.1,0.6708]
[1758919598389,3.7534,4011.2,4011.1,0.9238]
[1758919599091,3.9634,4011.2,4011.1,2.11537843]
[1758919599792,4.4118,4011.2,4011.1,1.90027843]
[1758919601291,4.4118,4011.2,4011.1,2.11537843]
[1758919601791,3.9634,4011.2,4011.1,2.56378843]
[1758919602093,3.9634,4011.2,4011.1,2.11537843]
[1758919603093,3.9634,4011.2,4011.1,2.36297843]
[1758919603289,4.4118,4011.2,4011.1,2.11537843]
[1758919603491,4.4118,4011.2,4011.1,1.90027843]
[1758919605093,4.4118,4011.2,4010.7,0.2219]
[1758919605094,1.20704,4010.8,4010.7,0.2219]
[1758919605295,1.20704,4010.8,4010.7,0.4749]
[1758919606198,1.20704,4010.8,4010.7,1.91417843]
[1758919608301,0.7586,4010.8,4010.7,1.91417843]
[1758919608599,0.3201,4010.8,4010.7,2.82142843]
[1758919609698,0.537,4010.8,4010.7,2.82142843]
[1758919613300,0.537,4010.8,4010.7,2.37297843]
[1758919613800,0.537,4010.8,4010.7,2.82142843]
[1758919614002,1.20704,4010.8,4010.7,0.6861]
[1758919614189,1.20704,4010.8,4010.7,0.4749]
[1758919614389,0.3201,4010.7,4010.5,1.43927843]
[1758919614597,0.7586,4010.6,4010.5,2.10965843]
[1758919614795,0.7586,4010.6,4010.5,2.57385843]
[1758919614998,0.7586,4010.6,4010.5,2.82145843]
[1758919615198,0.3201,4010.6,4010.5,4.26073686]
[1758919615702,0.1339,4011.0,4010.9,0.44843]
[1758919615903,3.8731,4011.2,4011.1,0.6807]
[1758919616103,4.0947,4011.2,4011.1,0.4749]
[1758919616304,4.4148,4011.2,4011.1,0.253]
[1758919617506,0.5724,4011.0,4010.9,1.43927843]
[1758919617703,0.8925,4011.0,4010.9,1.91417843]
[1758919618004,0.8925,4011.0,4010.9,1.66117843]
[1758919618206,0.8925,4011.0,4010.9,2.57380843]
[1758919619300,1.34092,4011.0,4010.9,1.43927843]
[1758919619500,1.34092,4011.0,4010.9,1.69227843]
[1758919621803,1.34092,4011.0,4010.9,1.91417843]
[1758919622308,0.3201,4011.0,4010.9,2.82140843]
[1758919622802,3.2078,4011.2,4011.1,0.2219]
[1758919622999,4.0947,4011.2,4011.1,0.75]
[1758919624009,4.0947,4011.2,4011.1,0.4331]
[1758919624307,0.4385,4010.7,4010.6,0.98726]
[1758919624505,0.4385,4010.7,4010.6,1.24026]
[1758919624706,0.4385,4010.7,4010.6,1.45146]
[1758919625002,0.7586,4010.7,4010.6,1.45146]
[1758919625202,1.20705,4010.7,4010.6,1.003]
[1758919625601,1.20705,4010.7,4010.6,2.44227843]
[1758919626902,1.20705,4010.7,4010.6,1.69227843]
[1758919627104,0.7473,4010.2,4010.1,0.2257]
[1758919627410,0.7473,4010.2,4010.1,2.44997843]
[1758919629011,1.19581,4010.2,4010.1,2.44997843]
[1758919629910,0.7473,4010.2,4010.1,2.44997843]
[1758919630909,0.7473,4010.2,4010.1,2.89849843]
[1758919631805,0.44849,4010.4,4010.1,2.89849843]
[1758919631806,1.19573,4010.9,4010.8,0.5362]
[1758919632006,1.19576,4010.7,4010.6,0.2257]
[1758919632206,1.19576,4010.7,4010.6,0.4787]
[1758919632407,0.79257,4010.5,4010.4,3.2078]
[1758919632610,1.33987,4010.5,4010.4,3.4608]
[1758919633002,1.33987,4010.5,4010.4,0.253]
[1758919633309,1.33987,4010.5,4010.4,1.43927843]
[1758919633504,1.33987,4010.5,4010.4,1.69227843]
[1758919633811,1.33987,4010.5,4010.4,1.43927843]
[1758919634013,1.33987,4010.5,4010.4,1.69227843]
[1758919635721,1.33987,4010.5,4010.4,1.89897843]
[1758919635914,1.33987,4010.5,4010.4,2.42737843]
[1758919637315,1.33987,4010.5,4010.4,2.11497843]
[1758919638511,1.33987,4010.5,4010.4,0.6757]
[1758919638717,1.33987,4010.5,4010.4,2.46951118]
[1758919639017,1.33987,4010.5,4010.4,2.78191118]
[1758919642027,1.33987,4010.5,4010.4,2.25351118]
[1758919643416,0.7574,4010.2,4009.9,3.21069889]
[1758919643723,1.33993,4010.0,4009.9,0.00289889]
[1758919643915,1.33993,4010.0,4009.9,0.25589889]
[1758919644408,6.33993,4010.0,4009.9,0.25589889]
[1758919646417,6.33993,4010.0,4009.9,0.00289889]
[1758919646620,6.33993,4010.0,4009.9,0.25589889]
[1758919649623,1.33993,4010.0,4009.9,0.46259889]
[1758919651122,1.33993,4010.0,4009.9,0.25589889]
[1758919654024,1.33993,4010.0,4009.9,0.46259889]
[1758919654517,1.33993,4010.0,4009.9,0.77499889]
[1758919654725,1.33993,4010.0,4009.9,0.46259889]
[1758919655521,1.33993,4010.0,4009.9,0.99099889]
[1758919655826,1.33993,4010.0,4009.9,2.78481007]
[1758919656019,1.33993,4010.0,4009.9,2.47241007]
[1758919656824,1.33993,4010.0,4009.9,2.78481007]
[1758919661824,1.33993,4010.0,4009.9,0.99099889]
[1758919662125,1.33993,4010.0,4009.9,0.25589889]
[1758919662326,1.33993,4010.0,4009.9,0.46259889]
[1758919662628,1.33993,4010.0,4009.9,0.78519889]
[1758919662829,1.33993,4010.0,4009.9,0.46259889]
[1758919667533,0.77503,4010.0,4009.9,0.99769889]
[1758919667739,0.44853,4010.0,4009.9,5.99769889]
[1758919673042,1.19513,4010.0,4009.9,5.74469889]
[1758919673340,1.32743,4010.0,4009.9,0.99769889]
[1758919673641,1.19513,4010.0,4009.9,0.99769889]
[1758919680440,0.98983,4010.0,4009.9,0.99769889]
[1758919681057,0.44853,4010.0,4009.9,0.99769889]
[1758919681857,3.2078,4010.1,4010.0,1.31663]
[1758919682054,3.65632,4010.1,4010.0,0.8681]
[1758919682654,3.2078,4010.1,4010.0,0.8681]
[1758919682855,0.3174,4010.5,4010.0,1.31663]
[1758919683153,0.98978,4010.5,4010.4,2.53531118]
[1758919683355,0.98978,4010.5,4010.4,2.78831118]
[1758919683658,0.44848,4010.5,4010.4,2.78831118]
[1758919685555,3.2078,4010.6,4010.5,0.8681]
[1758919685757,3.65626,4010.6,4010.5,0.8681]
[1758919686557,3.97246,4010.6,4010.5,1.1201]
[1758919686858,0.44845,4010.7,4010.6,0.7342]
[1758919687059,0.98535,4010.7,4010.6,2.52801118]
[1758919687358,0.98535,4010.7,4010.6,2.78001118]
[1758919687758,0.98535,4010.7,4010.6,2.52801118]
[1758919687958,0.98535,4010.7,4010.6,2.78001118]
[1758919688958,0.98535,4010.7,4010.6,2.52801118]
[1758919689152,1.20595,4010.7,4010.6,2.78001118]
[1758919689456,1.20595,4010.7,4010.6,2.46101118]
[1758919689658,1.20595,4010.7,4010.6,2.78001118]
[1758919693061,1.20595,4010.7,4010.6,2.52801118]
[1758919693260,1.20595,4010.7,4010.6,2.78001118]
[1758919693561,1.20595,4010.7,4010.6,2.52801118]
[1758919693761,1.20595,4010.7,4010.6,2.78001118]
[1758919698563,0.44844,4010.8,4010.6,2.90947118]
[1758919698764,0.44843,4010.9,4010.8,0.3366]
[1758919698964,0.44843,4010.9,4010.8,1.0233]
[1758919699165,0.75503,4010.9,4010.8,1.0233]
[1758919699566,0.96153,4010.9,4010.8,1.0233]
[1758919699861,3.2078,4011.1,4010.8,1.0233]
[1758919700068,3.2078,4011.1,4011.0,3.13853118]
[1758919700364,3.65621,4011.1,4011.0,2.94211118]
[1758919700666,3.2078,4011.1,4011.0,2.58712294]
[1758919700867,3.2078,4011.1,4011.0,3.03554294]
[1758919701868,0.4484,4011.2,4011.0,2.69894294]
[1758919702070,0.3066,4011.3,4011.2,0.7713]
[1758919702261,0.3066,4011.3,4011.2,1.0233]
[1758919702569,0.75499,4011.3,4011.2,1.0233]
[1758919702865,0.00181967,4011.5,4011.2,1.4717]
[1758919703066,0.96327967,4011.5,4011.4,2.21012294]
[1758919703258,0.96327967,4011.5,4011.4,2.46212294]
[1758919704677,0.51491967,4011.5,4011.4,2.91049294]
[1758919704969,0.00181967,4011.5,4011.4,2.91049294]
[1758919706272,0.45017967,4011.5,4011.4,2.91049294]
[1758919706465,0.96327967,4011.5,4011.4,2.46212294]
[1758919707873,1.17107967,4011.5,4011.4,2.21012294]
[1758919708073,1.17107967,4011.5,4011.4,2.46212294]
[1758919708573,1.17107967,4011.5,4011.4,2.91049294]
[1758919709075,0.72271967,4011.5,4011.4,2.91049294]
[1758919709776,0.00181967,4011.5,4011.4,2.91049294]
[1758919710974,0.00181967,4011.5,4011.4,6.11829294]
[1758919712072,0.00181967,4011.5,4011.4,7.55711588]
[1758919712269,3.2078,4012.2,4012.1,1.2196]
[1758919712471,3.2078,4012.2,4012.1,2.91042294]
[1758919712871,3.5144,4012.2,4012.1,2.91042294]
[1758919713175,3.5172111,4012.2,4012.1,2.91042294]
[1758919714277,0.0028111,4012.2,4012.1,2.91042294]
[1758919714471,0.0028111,4012.2,4012.1,2.65842294]
[1758919714667,0.5159111,4012.2,4012.1,2.46212294]
[1758919714870,1.1720011,4012.2,4012.1,1.98722294]
[1758919715069,4.3798011,4012.2,4012.1,1.43882294]
[1758919715268,1.16925,4011.6,4011.5,0.5484]
[1758919715475,1.16925,4011.6,4011.5,2.23922294]
[1758919715874,1.16925,4011.6,4011.5,2.46212294]
[1758919716870,1.16925,4011.6,4011.5,0.4347]
[1758919717076,1.29416,4011.5,4011.4,3.2078]
[1758919717376,1.29416,4011.5,4011.4,4.64662294]
[1758919717571,1.29416,4011.5,4011.4,4.89862294]
[1758919717769,1.29416,4011.5,4011.4,1.43882294]
[1758919718174,1.29416,4011.5,4011.4,1.69082294]
[1758919718579,0.4143,4011.2,4011.1,1.43882294]
[1758919718772,0.7209,4011.2,4011.1,1.69082294]
[1758919719078,1.1693,4011.2,4011.1,1.69082294]
[1758919720680,4.3771,4011.2,4011.1,1.43882294]
[1758919720879,4.3771,4011.2,4011.1,1.69082294]
[1758919726583,4.3771,4011.2,4011.1,2.41372294]
[1758919732985,4.3771,4011.2,4011.1,1.89692294]
[1758919733283,4.3771,4011.2,4011.1,1.69082294]
[1758919734986,4.3771,4011.2,4011.1,2.86213294]
[1758919735184,4.3771,4011.2,4011.1,2.41372294]
[1758919735678,4.3771,4011.2,4011.1,1.89692294]
[1758919736580,4.3771,4011.2,4011.1,1.43882294]
[1758919736784,1.20833,4010.9,4010.8,1.46930645]
[1758919736981,1.20833,4010.9,4010.8,1.92740645]
[1758919737384,1.20833,4010.9,4010.8,2.23610645]
[1758919739084,1.20833,4010.9,4010.8,2.68454645]
[1758919739290,0.98251,4011.1,4011.0,0.7229]
[1758919740087,0.98251,4011.1,4011.0,1.17132]
[1758919740381,0.98251,4011.1,4011.0,0.7229]
[1758919741281,0.5341,4011.1,4011.0,1.17132]
[1758919741483,3.6562,4011.2,4011.1,0.86261]
[1758919741689,3.6562,4011.2,4011.1,2.86213294]
[1758919741886,4.4161,4011.2,4011.1,2.41372294]
[1758919742086,4.4161,4011.2,4011.1,1.89692294]
[1758919742476,4.4161,4011.2,4011.1,1.64492294]
[1758919742784,4.4161,4011.2,4011.1,1.69082294]
[1758919743983,1.20839,4010.4,4010.3,0.5148]
[1758919744183,1.20839,4010.4,4010.3,2.34542294]
[1758919744384,1.20839,4010.4,4010.3,2.65412294]
[1758919744783,0.7599,4010.4,4010.3,2.41372294]
[1758919745089,0.5341,4010.4,4010.3,2.86222294]
[1758919745391,3.2078,4010.7,4010.6,1.17136]
[1758919745693,0.44843,4010.9,4010.8,0.7229]
[1758919745994,0.76213,4010.9,4010.8,0.7229]
[1758919746289,3.7491,4011.2,4011.1,0.7557]
[1758919746485,0.44843,4010.9,4010.7,0.44844]
[1758919746685,0.756,4010.2,4010.1,0.4347]
[1758919746882,0.756,4010.2,4010.1,2.44652294]
[1758919747088,0.3343,4010.2,4010.1,2.44652294]
[1758919748188,0.44849,4010.4,4010.1,2.12552294]
[1758919748490,0.3343,4010.4,4010.3,0.7557]
[1758919748683,0.98977,4010.6,4010.5,0.4347]
[1758919748885,0.98977,4010.6,4010.5,2.44652294]
[1758919749286,1.20447,4010.6,4010.5,2.44652294]
[1758919751383,0.5413,4010.6,4010.5,2.57132294]
[1758919752087,0.44846,4010.7,4010.5,3.01979294]
[1758919752390,0.97486,4010.7,4010.6,2.17802294]
[1758919752688,1.19156,4010.7,4010.6,2.17802294]
[1758919755384,0.3196,4011.1,4010.6,2.56538294]
[1758919755590,0.7431,4011.1,4011.0,1.96972294]
[1758919755785,0.7431,4011.1,4011.0,2.43002294]
[1758919756286,1.19151,4011.1,4011.0,2.11692294]
[1758919756493,1.19151,4011.1,4011.0,1.69082294]
[1758919757595,1.19151,4011.1,4011.0,2.43002294]
[1758919762497,0.65521,4011.1,4011.0,2.55802294]
[1758919762698,0.97481,4011.1,4011.0,2.91257126]
[1758919762997,0.97481,4011.1,4011.0,3.36099126]
[1758919763796,0.97481,4011.1,4011.0,2.91257126]
[1758919764598,0.97481,4011.1,4011.0,3.36099126]
[1758919765396,0.97481,4011.1,4011.0,2.91257126]
[1758919765696,1.19151,4011.1,4011.0,2.78457126]
[1758919767301,1.19151,4011.1,4011.0,3.23299126]
[1758919767496,0.97481,4011.1,4011.0,3.23299126]
[1758919767695,0.97481,4011.1,4011.0,3.36099126]
[1758919767899,0.97481,4011.1,4011.0,2.91257126]
[1758919768200,0.97481,4011.1,4011.0,3.36099126]
[1758919768600,0.97481,4011.1,4011.0,2.91257126]
[1758919768900,0.97481,4011.1,4011.0,3.36099126]
[1758919769501,0.97481,4011.1,4011.0,2.91257126]
[1758919770900,0.97481,4011.1,4011.0,3.36099126]
[1758919771205,0.97481,4011.1,4011.0,2.91257126]
[1758919772705,0.97481,4011.1,4011.0,3.36099126]
[1758919774407,40.8,4011.8,4011.1,1.18761]
[1758919774606,0.44837,4011.4,4011.1,1.18761]
[1758919774905,0.44836,4011.5,4011.1,1.18761]
[1758919775703,0.44834,4011.8,4011.1,1.18761]
[1758919775904,3.2078,4011.7,4011.6,1.18754]
[1758919776206,3.2078,4011.7,4011.6,3.23291126]
[1758919777006,3.2078,4011.7,4011.6,8.23291126]
[1758919779405,3.2078,4011.7,4011.6,3.23291126]
[1758919782208,3.2106111,4012.2,4012.1,0.4483]
[1758919782412,3.2106111,4012.2,4012.1,1.4674]
[1758919782614,3.2106111,4012.2,4012.1,3.26077126]
[1758919783108,4.2206911,4012.2,4012.1,2.81247126]
[1758919783303,4.4443911,4012.2,4012.1,2.81247126]
[1758919783515,1.23383,4011.8,4011.7,0.2184]
[1758919783715,1.23383,4011.8,4011.7,0.4704]
[1758919783916,0.7855,4011.8,4011.7,1.46744]
[1758919784112,1.23383,4011.8,4011.7,1.46744]
[1758919784712,1.23383,4011.8,4011.7,1.0191]
[1758919787822,1.23383,4011.8,4011.7,1.46744]
[1758919788519,0.5618,4011.8,4011.7,1.46744]
[1758919788719,0.78741,4012.0,4011.8,1.21543]
[1758919789016,3.6589011,4012.2,4012.0,0.57741]
[1758919789222,4.2207011,4012.2,4012.1,1.0191]
[1758919789825,4.4444011,4012.2,4012.1,1.0191]
[1758919793228,4.4444011,4012.2,4012.1,0.6908]
[1758919793530,4.4444011,4012.2,4012.1,0.252]
[1758919794230,4.4444011,4012.2,4012.1,1.0191]
[1758919794732,3.9961111,4012.2,4012.1,1.0191]
[1758919794928,4.4443911,4012.2,4012.1,1.0191]
[1758919795430,3.9961111,4012.2,4012.1,1.4674]
[1758919795727,4.4443911,4012.2,4012.1,1.4674]
[1758919796133,4.4443911,4012.2,4012.1,1.0191]
[1758919797135,4.4443911,4012.2,4012.1,1.4674]
[1758919798038,4.4443911,4012.2,4012.1,1.0191]
[1758919798334,4.4443911,4012.2,4012.1,1.4674]
[1758919799736,4.4443911,4012.2,4012.1,1.0191]
[1758919800335,1.36131,4012.0,4011.9,1.79337126]
[1758919800630,0.3391,4011.4,4011.1,0.52503895]
[1758919800833,0.7855,4011.4,4011.3,2.01177126]
[1758919801430,0.7855,4011.4,4011.3,2.46016126]
[1758919801629,0.7855,4011.4,4011.3,2.78846126]
[1758919802637,0.7855,4011.4,4011.3,3.00886126]
[1758919803436,0.5618,4011.7,4011.6,1.21544]
[1758919803631,1.23384,4011.7,4011.6,3.26081126]
[1758919803835,1.23384,4011.7,4011.6,2.81247126]
[1758919804840,0.7855,4011.7,4011.6,3.26082126]
[1758919805037,0.5618,4011.7,4011.6,3.26082126]
[1758919805233,0.67101,4012.0,4011.9,0.2184]
[1758919805436,1.02221,4012.0,4011.9,1.0191]
[1758919805740,1.02221,4012.0,4011.9,0.6908]
[1758919806038,1.36131,4012.0,4011.9,0.6908]
[1758919806638,1.36131,4012.0,4011.9,2.48417126]
[1758919807440,1.36131,4012.0,4011.9,2.79647126]
[1758919809042,0.7855,4012.0,4011.9,2.79647126]
[1758919809738,0.0028111,4012.2,4012.1,0.8804]
[1758919809944,0.0028111,4012.2,4012.1,1.4447]
[1758919810145,1.2059011,4012.2,4012.1,0.6841]
[1758919810744,1.2059011,4012.2,4012.1,0.252]
[1758919811549,1.2059011,4012.2,4012.1,0.4589]
[1758919811749,0.7576111,4012.2,4012.1,1.4447]
[1758919812044,1.2058911,4012.2,4012.1,1.4447]
[1758919812246,0.7576111,4012.2,4012.1,1.4447]
[1758919814950,0.0028111,4012.2,4012.1,1.4447]
[1758919817645,0.7782111,4012.2,4012.1,0.8804]
[1758919817847,0.7782111,4012.2,4012.1,1.1324]
[1758919818245,0.7782111,4012.2,4012.1,1.4541]
[1758919818752,0.7782111,4012.2,4012.1,1.2021]
[1758919818952,0.7782111,4012.2,4012.1,1.4541]
[1758919819755,0.7782111,4012.2,4012.1,1.2021]
[1758919820052,0.7782111,4012.2,4012.1,1.4541]
[1758919822657,0.7782111,4012.2,4012.1,2.89223651]
[1758919824655,3.2078,4012.7,4012.6,0.88014]
[1758919824848,3.2078,4012.7,4012.6,2.89197651]
[1758919825048,3.5456,4012.7,4012.6,2.89197651]
[1758919825256,3.7623,4012.7,4012.6,2.89197651]
[1758919825658,3.76427738,4012.7,4012.6,2.89197651]
[1758919828356,3.20977738,4012.7,4012.6,2.89197651]
[1758919829559,0.00197738,4012.7,4012.6,2.89197651]
[1758919833960,0.00197738,4012.7,4012.6,4.33011302]
[1758919834151,3.7623,4013.2,4013.1,1.20178]
[1758919834355,3.9832,4013.2,4013.1,4.33005302]
[1758919835160,3.98499703,4013.2,4013.1,4.33264882]
[1758919836559,3.20959703,4013.2,4013.1,4.33264882]
[1758919838154,0.00179703,4013.2,4013.1,4.33264882]
[1758919840057,3.2078,4013.7,4013.6,0.88003]
[1758919840256,3.2078,4013.7,4013.6,2.89186651]
[1758919840463,3.3203986,4013.7,4013.6,2.89186651]
[1758919840664,3.6581986,4013.7,4013.6,2.89186651]
[1758919841167,3.66068237,4013.7,4013.6,2.89186651]
[1758919842365,3.66068237,4013.7,4013.6,3.09427009]
[1758919842667,3.88208237,4013.7,4013.6,3.09427009]
[1758919842969,0.11508237,4013.7,4013.6,3.09427009]
[1758919843566,0.42578237,4013.7,4013.6,3.09427009]
[1758919844267,0.00248377,4013.7,4013.6,3.09427009]
[1758919844465,3.2078,4014.2,4013.6,2.64614009]
[1758919844657,0.7562,4015.7,4015.6,0.98551]
[1758919844859,0.86870633,4015.7,4015.6,2.45003651]
[1758919845055,0.86870633,4015.7,4015.5,0.44791]
[1758919845364,0.7562,4015.6,4015.5,0.44791]
[1758919845565,0.75817125,4015.6,4015.5,0.69991]
[1758919846358,0.75817125,4015.6,4015.5,0.92221]
[1758919846564,0.75817125,4015.6,4015.5,2.36034651]
[1758919850163,0.75817125,4015.6,4015.5,1.91243651]
[1758919850364,0.75817125,4015.6,4015.5,2.24193651]
[1758919850564,0.75817125,4015.6,4015.5,2.45003651]
[1758919850763,0.75817125,4015.6,4015.5,3.88817302]
[1758919851872,0.75817125,4015.6,4015.5,4.33609302]
[1758919852171,0.75817125,4015.6,4015.5,2.89795651]
[1758919852673,0.75817125,4015.6,4015.5,2.64595651]
[1758919852974,0.75817125,4015.6,4015.5,4.33609302]
[1758919853468,0.3107,4015.4,4015.2,0.77745]
[1758919853672,0.7562,4015.3,4015.2,0.67025]
[1758919853864,0.3107,4015.2,4015.1,3.2078]
[1758919854066,1.20415,4015.2,4015.1,3.4598]
[1758919854566,1.20415,4015.2,4015.1,4.89793651]
[1758919854766,0.7562,4015.2,4015.1,6.10579651]
[1758919855663,0.2214,4015.4,4015.3,0.44794]
[1758919855871,0.5321,4015.4,4015.3,1.45984]
[1758919856071,0.7562,4015.4,4015.3,1.0119]
[1758919857070,0.7562,4015.4,4015.3,1.45984]
[1758919857773,0.44795,4015.2,4015.1,3.2078]
[1758919858074,1.20421,4014.7,4014.6,3.2078]
[1758919858274,1.20421,4014.7,4014.6,3.4598]
[1758919859176,1.20421,4014.7,4014.6,4.89793651]
[1758919859378,1.20421,4014.7,4014.6,5.34595651]
[1758919859571,1.20421,4014.7,4014.6,5.12023651]
[1758919859874,1.20421,4014.7,4014.6,6.10585651]
[1758919859875,0.7562,4014.7,4014.6,6.10585651]
[1758919860177,1.20421,4014.7,4014.6,4.2197]
[1758919860469,1.20421,4014.7,4014.6,3.90782]
[1758919860671,0.7562,4014.7,4014.6,4.13012]
[1758919860972,3.2078,4015.2,4015.1,0.77746]
[1758919861174,3.2078,4015.2,4015.1,2.89799651]
[1758919861480,0.31267125,4015.6,4015.1,2.89799651]
[1758919861481,0.53407125,4015.6,4015.5,0.87832]
[1758919861783,0.64142888,4015.6,4015.5,4.00659302]
[1758919862074,1.08933888,4015.6,4015.5,3.88817302]
[1758919862268,1.31343888,4015.6,4015.5,1.91243651]
[1758919863478,1.31343888,4015.6,4015.5,2.45003651]
[1758919863672,0.86552888,4015.6,4015.5,2.89795651]
[1758919863874,1.31343888,4015.6,4015.5,2.89795651]
[1758919864778,1.31343888,4015.6,4015.5,2.45003651]
[1758919864975,0.86552888,4015.6,4015.5,2.45003651]
[1758919865180,0.64142888,4015.6,4015.5,2.57653651]
[1758919865378,0.64142888,4015.6,4015.5,3.02445651]
[1758919865779,0.64142888,4015.6,4015.5,2.57653651]
[1758919866176,1.08933888,4015.6,4015.5,2.57653651]
[1758919866377,1.08933888,4015.6,4015.5,2.45003651]
[1758919867079,1.19555,4015.2,4015.1,3.7487]
[1758919867381,1.30290763,4015.2,4015.1,5.65173651]
[1758919869779,0.10735763,4015.2,4015.1,5.65173651]
[1758919870084,0.10735763,4015.2,4015.1,6.09969651]
[1758919870383,0.10735763,4015.2,4015.1,5.65173651]
[1758919870583,0.10735763,4015.2,4015.1,6.09969651]
[1758919870883,0.10735763,4015.2,4015.1,6.9917677]
[1758919871780,0.10735763,4015.2,4015.1,6.09969651]
[1758919872186,0.10735763,4015.2,4015.1,7.43215914]
[1758919873582,0.31555763,4015.2,4015.1,5.39873651]
[1758919873788,1.30540763,4015.2,4015.1,6.73901611]
[1758919873984,1.30540763,4015.2,4015.1,6.99201611]
[1758919874289,1.30540763,4015.2,4015.1,5.39873651]
[1758919874490,1.30540763,4015.2,4015.1,5.65173651]
[1758919874985,0.85806173,4015.2,4015.1,5.65173651]
[1758919875188,1.30601173,4015.2,4015.1,5.65173651]
[1758919875389,0.85806173,4015.2,4015.1,5.65173651]
[1758919875687,0.85806173,4015.2,4015.1,7.44115989]
[1758919875885,0.85806173,4015.2,4015.1,6.99319989]
[1758919876282,1.30601173,4015.2,4015.1,6.74019989]
[1758919876478,1.30601173,4015.2,4015.1,4.75536338]
[1758919876785,1.30601173,4015.2,4015.1,3.4608]
[1758919876984,1.30601173,4015.2,4015.1,4.89893651]
[1758919877289,1.30601173,4015.2,4015.1,5.12543651]
[1758919877788,1.80720559,4015.2,4015.1,5.12543651]
[1758919878679,6.80720559,4015.2,4015.1,4.64593651]
[1758919878974,6.80720559,4015.2,4015.1,4.89893651]
[1758919879688,6.80720559,4015.2,4015.1,4.64593651]
[1758919879989,6.80720559,4015.2,4015.1,4.89893651]
[1758919880179,6.80720559,4015.2,4015.1,5.66893651]
[1758919882091,6.80720559,4015.2,4015.1,5.33153651]